[Event "ETCC Women 2013"]
[Site "Warsaw"]
[Date "2013.11.10"]
[Round "3"]
[White "Rakic, Marija"]
[Black "Rudolf, Anna"]
[Result "1/2-1/2"]
[ECO "D58"]
[WhiteElo "2291"]
[BlackElo "2281"]
[PlyCount "149"]
[EventDate "2013.??.??"]
[EventCountry "POL"]
[WhiteTeam "Serbia"]
[BlackTeam "Hungary"]
[WhiteTeamCountry "SRB"]
[BlackTeamCountry "HUN"]
[TimeControl "40/5400+30:1800+30"]

1. d4 {[%emt 0:00:00]} d5 {[%emt 0:00:00]} 2. c4 {[%emt 0:00:00]} e6 {[%emt 0:
00:00]} 3. Nc3 {[%emt 0:00:00]} Be7 {[%emt 0:00:01]} 4. Nf3 {[%emt 0:00:39]}
Nf6 {[%emt 0:00:11]} 5. Bg5 {[%emt 0:00:39]} h6 {[%emt 0:00:14]} 6. Bh4 {[%emt
0:00:04]} O-O {[%emt 0:00:34]} 7. e3 {[%emt 0:00:05]} b6 {[%emt 0:00:41]} 8.
Bxf6 {[%emt 0:03:43]} Bxf6 {[%emt 0:00:11]} 9. cxd5 {[%emt 0:00:05]} exd5 {
[%emt 0:00:19]} 10. Bd3 {[%emt 0:00:04]} Be6 {[%emt 0:07:56]} 11. O-O {[%emt 0:
00:07]} c5 {[%emt 0:07:37]} 12. dxc5 {[%emt 0:00:07]} bxc5 {[%emt 0:00:28]} 13.
Rc1 {[%emt 0:00:07]} Nd7 {[%emt 0:08:07]} 14. Bb1 {[%emt 0:16:22]} Nb6 {[%emt
0:05:08]} 15. Qe2 {[%emt 0:07:41]} Qe7 {[%emt 0:02:53]} 16. Rfd1 {[%emt 0:01:
19]} Rfd8 {[%emt 0:02:17]} 17. h3 {[%emt 0:02:59]} g6 {[%emt 0:09:30]} 18. Re1
{[%emt 0:22:40]} Bg7 {[%emt 0:01:48]} 19. b3 {[%emt 0:08:07]} Rac8 {[%emt 0:02:
35]} 20. Nb5 {[%emt 0:04:47]} Qb7 {[%emt 0:04:18]} 21. Na3 {[%emt 0:04:09]} Bf8
{[%emt 0:15:17]} 22. e4 {[%emt 0:05:32]} c4 {[%emt 0:07:50]} 23. Nb5 {[%emt 0:
00:34]} dxe4 {[%emt 0:17:06]} 24. Bxe4 {[%emt 0:00:52]} Qd7 {[%emt 0:01:16]}
25. Nbd4 {[%emt 0:07:33]} Bd5 {[%emt 0:02:29]} 26. Ne5 {[%emt 0:02:24]} Qd6 {
[%emt 0:00:26]} 27. Bxd5 {[%emt 0:00:35]} Qxd5 {[%emt 0:00:09]} 28. Ndc6 {
[%emt 0:00:22]} Re8 {[%emt 0:01:56]} 29. bxc4 {[%emt 0:00:49]} Qxc6 {[%emt 0:
01:40]} 30. Nxc6 {[%emt 0:00:42]} Rxe2 {[%emt 0:00:06]} 31. Rxe2 {[%emt 0:00:
02]} Rxc6 {[%emt 0:00:08]} 32. Re4 {[%emt 0:00:37]} Bb4 {[%emt 0:01:58]} 33. h4
{[%emt 0:00:50]} a5 {[%emt 0:00:31]} 34. h5 {[%emt 0:00:23]} gxh5 {[%emt 0:00:
25]} 35. g3 {[%emt 0:00:38]} Kg7 {[%emt 0:00:10]} 36. Kg2 {[%emt 0:00:15]} Kg6
{[%emt 0:00:23]} 37. Kh3 {[%emt 0:01:21]} Kf5 {[%emt 0:00:38]} 38. Rf4+ {[%emt
0:00:22]} Kg6 {[%emt 0:00:09]} 39. Rc2 {[%emt 0:02:11]} Nd7 {[%emt 0:01:10]}
40. Re2 {[%emt 0:00:00]} Nb6 {[%emt 0:00:00]} 41. Rc2 {[%emt 0:05:27]} Nd7 {
[%emt 0:07:12]} 42. Re4 {[%emt 0:03:54]} f6 {[%emt 0:05:23]} 43. Rd4 {[%emt 0:
07:28]} Ne5 {[%emt 0:03:18]} 44. f4 {[%emt 0:01:50]} Ng4 {[%emt 0:00:10]} 45.
Re2 {[%emt 0:00:15]} Bc3 {[%emt 0:01:58]} 46. Rd5 {[%emt 0:06:52]} f5 {[%emt 0:
02:59]} 47. Rd3 {[%emt 0:07:22]} Bb4 {[%emt 0:07:40]} 48. a3 {[%emt 0:01:46]}
Bc5 {[%emt 0:00:12]} 49. Kg2 {[%emt 0:05:58]} Rb6 {[%emt 0:00:17]} 50. Kf3 {
[%emt 0:01:02]} a4 {[%emt 0:00:25]} 51. Kg2 {[%emt 0:00:57]} Nf6 {[%emt 0:04:
52]} 52. Rd8 {[%emt 0:00:04]} Ne4 {[%emt 0:00:52]} 53. Ra8 {[%emt 0:00:14]} Rb3
{[%emt 0:01:38]} 54. Kh2 {[%emt 0:00:05]} Rxa3 {[%emt 0:00:32]} 55. Ra6+ {
[%emt 0:01:41]} Kg7 {[%emt 0:00:23]} 56. Ra5 {[%emt 0:00:10]} Bf2 {[%emt 0:00:
44]} 57. Rxf5 {[%emt 0:00:16]} Bxg3+ {[%emt 0:00:26]} 58. Kg2 {[%emt 0:00:10]}
Nf6 {[%emt 0:00:22]} 59. Re6 {[%emt 0:01:18]} Bh4 {[%emt 0:00:43]} 60. Ra6 {
[%emt 0:00:44]} Ng4 {[%emt 0:00:36]} 61. Rxh5 {[%emt 0:00:48]} Bf6 {[%emt 0:00:
23]} 62. Rha5 {[%emt 0:00:29]} Ne3+ {[%emt 0:00:17]} 63. Kf2 {[%emt 0:00:21]}
Nxc4 {[%emt 0:00:40]} 64. Rxa4 {[%emt 0:00:07]} Bh4+ {[%emt 0:00:28]} 65. Kf1 {
[%emt 0:01:35]} Rf3+ {[%emt 0:00:24]} 66. Kg2 {[%emt 0:00:03]} Rxf4 {[%emt 0:
00:36]} 67. Kh3 {[%emt 0:00:24]} Bg5 {[%emt 0:00:19]} 68. Rc6 {[%emt 0:00:09]}
Ne5 {[%emt 0:00:22]} 69. Rxf4 {[%emt 0:00:34]} Bxf4 {[%emt 0:00:03]} 70. Ra6 {
[%emt 0:00:13]} Bg5 {[%emt 0:00:24]} 71. Ra5 {[%emt 0:00:34]} Nc6 {[%emt 0:00:
50]} 72. Ra6 {[%emt 0:00:05]} Ne5 {[%emt 0:01:05]} 73. Ra5 {[%emt 0:00:05]} Kf6
{[%emt 0:00:43]} 74. Rxe5 {[%emt 0:00:04]} Kxe5 {[%emt 0:00:05]} 75. Kg2 {
[%emt 0:00:02]} 1/2-1/2

[Event "ETCC Women 2013"]
[Site "Warsaw"]
[Date "2013.11.10"]
[Round "3"]
[White "Revo, Tatiana"]
[Black "Unuk, Laura"]
[Result "1/2-1/2"]
[ECO "C07"]
[WhiteElo "2075"]
[BlackElo "1991"]
[PlyCount "131"]
[EventDate "2013.??.??"]
[EventCountry "POL"]
[WhiteTeam "Belarus"]
[BlackTeam "Slovenia"]
[WhiteTeamCountry "BLR"]
[BlackTeamCountry "SLO"]
[TimeControl "40/5400+30:1800+30"]

1. e4 {[%emt 0:00:00]} e6 {[%emt 0:00:00]} 2. d4 {[%emt 0:00:00]} d5 {[%emt 0:
00:00]} 3. Nd2 {[%emt 0:00:00]} c5 {[%emt 0:00:00]} 4. exd5 {[%emt 0:00:00]}
Qxd5 {[%emt 0:00:08]} 5. Ngf3 {[%emt 0:00:00]} cxd4 {[%emt 0:00:15]} 6. Bc4 {
[%emt 0:00:02]} Qd7 {[%emt 0:00:08]} 7. O-O {[%emt 0:01:31]} Nc6 {[%emt 0:00:
16]} 8. Nb3 {[%emt 0:00:50]} Nf6 {[%emt 0:00:45]} 9. Nbxd4 {[%emt 0:02:26]}
Nxd4 {[%emt 0:00:23]} 10. Nxd4 {[%emt 0:00:07]} a6 {[%emt 0:00:10]} 11. c3 {
[%emt 0:02:52]} b5 {[%emt 0:01:43]} 12. Bb3 {[%emt 0:12:15]} Bb7 {[%emt 0:05:
11]} 13. a4 {[%emt 0:02:14]} Bc5 {[%emt 0:10:22]} 14. Bg5 {[%emt 0:12:09]} O-O
{[%emt 0:13:31]} 15. Bxf6 {[%emt 0:16:28]} gxf6 {[%emt 0:00:15]} 16. Qh5 {
[%emt 0:02:09]} Bxd4 {[%emt 0:08:20]} 17. Bc2 {[%emt 0:01:42]} f5 {[%emt 0:01:
40]} 18. cxd4 {[%emt 0:00:34]} Qxd4 {[%emt 0:10:32]} 19. Ra3 {[%emt 0:05:34]}
Kh8 {[%emt 0:08:57]} 20. Rd1 {[%emt 0:14:18]} Qg4 {[%emt 0:06:47]} 21. Qxg4 {
[%emt 0:00:27]} fxg4 {[%emt 0:00:05]} 22. h3 {[%emt 0:05:21]} Rac8 {[%emt 0:03:
45]} 23. Rd2 {[%emt 0:02:15]} Rg8 {[%emt 0:04:30]} 24. axb5 {[%emt 0:08:07]}
gxh3 {[%emt 0:06:07]} 25. Rxh3 {[%emt 0:00:22]} Rxg2+ {[%emt 0:00:42]} 26. Kf1
{[%emt 0:00:06]} Rg7 {[%emt 0:02:10]} 27. Rc3 {[%emt 0:05:23]} axb5 {[%emt 0:
03:05]} 28. Rd7 {[%emt 0:02:50]} Rxc3 {[%emt 0:03:44]} 29. bxc3 {[%emt 0:00:06]
} f5 {[%emt 0:00:48]} 30. Rd8+ {[%emt 0:01:06]} Rg8 {[%emt 0:00:04]} 31. Rd7 {
[%emt 0:00:37]} Bf3 {[%emt 0:05:57]} 32. Ke1 {[%emt 0:01:57]} h5 {[%emt 0:01:
01]} 33. Rd6 {[%emt 0:00:49]} Rg6 {[%emt 0:00:41]} 34. Kd2 {[%emt 0:00:23]} h4
{[%emt 0:01:08]} 35. Bxf5 {[%emt 0:00:35]} Rh6 {[%emt 0:02:51]} 36. Rxe6 {
[%emt 0:00:20]} Rxe6 {[%emt 0:00:49]} 37. Bxe6 {[%emt 0:00:04]} Bg2 {[%emt 0:
00:12]} 38. c4 {[%emt 0:00:19]} bxc4 {[%emt 0:00:32]} 39. Kc3 {[%emt 0:00:05]}
Bf1 {[%emt 0:00:08]} 40. Bg4 {[%emt 0:00:00]} Kg7 {[%emt 0:00:00]} 41. Kd4 {
[%emt 0:01:13]} Kf6 {[%emt 0:01:23]} 42. f4 {[%emt 0:06:42]} Bd3 {[%emt 0:10:
08]} 43. Bh3 {[%emt 0:01:27]} Ke7 {[%emt 0:00:13]} 44. Kc3 {[%emt 0:01:12]} Kd6
{[%emt 0:01:45]} 45. Kd4 {[%emt 0:01:13]} Be2 {[%emt 0:06:06]} 46. Bg2 {[%emt
0:02:53]} Bd3 {[%emt 0:00:51]} 47. Bh3 {[%emt 0:00:07]} Ke7 {[%emt 0:00:07]}
48. Kc3 {[%emt 0:00:36]} Kf6 {[%emt 0:00:35]} 49. Kd4 {[%emt 0:00:40]} Bf5 {
[%emt 0:00:07]} 50. Bg2 {[%emt 0:01:32]} Be6 {[%emt 0:00:19]} 51. Bf1 {[%emt 0:
00:23]} Ke7 {[%emt 0:02:58]} 52. Kc3 {[%emt 0:05:19]} Kd7 {[%emt 0:00:39]} 53.
Bg2 {[%emt 0:00:39]} Kc7 {[%emt 0:01:42]} 54. Kb4 {[%emt 0:01:35]} Kd6 {[%emt
0:01:24]} 55. Bf1 {[%emt 0:00:07]} Bf7 {[%emt 0:03:55]} 56. Bg2 {[%emt 0:00:53]
} Ke7 {[%emt 0:05:26]} 57. Kc3 {[%emt 0:00:26]} Kf6 {[%emt 0:00:04]} 58. Bh3 {
[%emt 0:00:18]} Be6 {[%emt 0:00:45]} 59. Bg2 {[%emt 0:00:23]} Bg4 {[%emt 0:00:
46]} 60. Kd4 {[%emt 0:02:56]} Kf5 {[%emt 0:01:05]} 61. Ke3 {[%emt 0:00:52]} c3
{[%emt 0:00:35]} 62. Bf1 {[%emt 0:04:13]} c2 {[%emt 0:01:46]} 63. Bd3+ {[%emt
0:00:15]} Kf6 {[%emt 0:00:06]} 64. Bxc2 {[%emt 0:00:15]} Bf5 {[%emt 0:00:08]}
65. Bxf5 {[%emt 0:00:09]} Kxf5 {[%emt 0:00:05]} 66. Kf3 {[%emt 0:00:08]}
1/2-1/2

[Event "ETCC Women 2013"]
[Site "Warsaw"]
[Date "2013.11.10"]
[Round "3"]
[White "Saric, Kristina"]
[Black "Rautanen, Sari"]
[Result "1-0"]
[ECO "C41"]
[WhiteElo "2250"]
[BlackElo "1956"]
[PlyCount "88"]
[EventDate "2013.??.??"]
[EventCountry "POL"]
[WhiteTeam "Croatia"]
[BlackTeam "Finland"]
[WhiteTeamCountry "CRO"]
[BlackTeamCountry "FIN"]
[TimeControl "40/5400+30:1800+30"]

1. e4 {[%emt 0:00:00]} d6 {[%emt 0:00:00]} 2. d4 {[%emt 0:00:00]} Nf6 {[%emt 0:
00:00]} 3. Nc3 {[%emt 0:00:00]} e5 {[%emt 0:00:00]} 4. Nf3 {[%emt 0:00:15]}
Nbd7 {[%emt 0:00:12]} 5. Bc4 {[%emt 0:00:44]} Be7 {[%emt 0:00:09]} 6. O-O {
[%emt 0:00:59]} O-O {[%emt 0:00:10]} 7. a4 {[%emt 0:00:12]} c6 {[%emt 0:00:22]}
8. Re1 {[%emt 0:00:23]} a5 {[%emt 0:00:30]} 9. h3 {[%emt 0:01:34]} Nb6 {[%emt
0:01:25]} 10. Bb3 {[%emt 0:02:11]} Nfd7 {[%emt 0:00:59]} 11. Be3 {[%emt 0:03:
08]} exd4 {[%emt 0:00:48]} 12. Nxd4 {[%emt 0:00:19]} Nc5 {[%emt 0:01:19]} 13.
Qf3 {[%emt 0:01:30]} Nxb3 {[%emt 0:02:46]} 14. cxb3 {[%emt 0:03:12]} Be6 {
[%emt 0:07:15]} 15. Rad1 {[%emt 0:11:39]} Bf6 {[%emt 0:09:55]} 16. Nxe6 {[%emt
0:11:48]} fxe6 {[%emt 0:00:08]} 17. Qg4 {[%emt 0:00:51]} Re8 {[%emt 0:01:34]}
18. Bc5 {[%emt 0:05:31]} d5 {[%emt 0:08:10]} 19. e5 {[%emt 0:04:22]} Be7 {
[%emt 0:06:06]} 20. Qxe6+ {[%emt 0:02:53]} Kh8 {[%emt 0:00:28]} 21. Bxe7 {
[%emt 0:02:24]} Rxe7 {[%emt 0:00:26]} 22. Qg4 {[%emt 0:02:04]} Nd7 {[%emt 0:01:
03]} 23. Qd4 {[%emt 0:08:20]} Qc7 {[%emt 0:01:34]} 24. f4 {[%emt 0:01:39]} Rae8
{[%emt 0:02:51]} 25. Rc1 {[%emt 0:06:02]} Qb6 {[%emt 0:03:02]} 26. Qxb6 {[%emt
0:05:48]} Nxb6 {[%emt 0:00:06]} 27. g3 {[%emt 0:02:46]} Nd7 {[%emt 0:05:15]}
28. Ne2 {[%emt 0:02:36]} Kg8 {[%emt 0:05:46]} 29. Nd4 {[%emt 0:05:06]} g6 {
[%emt 0:03:40]} 30. Red1 {[%emt 0:04:54]} Kg7 {[%emt 0:14:38]} 31. Kg2 {[%emt
0:01:14]} Rf8 {[%emt 0:01:53]} 32. Rf1 {[%emt 0:03:41]} Rfe8 {[%emt 0:02:52]}
33. g4 {[%emt 0:02:30]} Kg8 {[%emt 0:00:22]} 34. e6 {[%emt 0:01:44]} Nf6 {
[%emt 0:00:31]} 35. f5 {[%emt 0:01:56]} g5 {[%emt 0:04:08]} 36. Nf3 {[%emt 0:
01:12]} Ne4 {[%emt 0:00:36]} 37. Ne5 {[%emt 0:01:39]} Kg7 {[%emt 0:01:40]} 38.
h4 {[%emt 0:00:42]} h6 {[%emt 0:04:50]} 39. hxg5 {[%emt 0:00:04]} hxg5 {[%emt
0:00:18]} 40. Rf3 {[%emt 0:00:00]} Nf6 {[%emt 0:00:00]} 41. Rh1 {[%emt 0:03:12]
} Rg8 {[%emt 0:04:16]} 42. Rfh3 {[%emt 0:02:29]} Ree8 {[%emt 0:00:59]} 43. Rh6
{[%emt 0:00:58]} Ne4 {[%emt 0:02:21]} 44. Nd7 {[%emt 0:00:43]} Nd2 1-0

[Event "ETCC Women 2013"]
[Site "Warsaw"]
[Date "2013.11.10"]
[Round "3"]
[White "Savola, Laura"]
[Black "Jelica, Mara"]
[Result "1/2-1/2"]
[ECO "E61"]
[WhiteElo "2076"]
[BlackElo "2252"]
[PlyCount "108"]
[EventDate "2013.??.??"]
[EventCountry "POL"]
[WhiteTeam "Finland"]
[BlackTeam "Croatia"]
[WhiteTeamCountry "FIN"]
[BlackTeamCountry "CRO"]
[TimeControl "40/5400+30:1800+30"]

1. d4 {[%emt 0:00:00]} Nf6 {[%emt 0:00:00]} 2. c4 {[%emt 0:00:00]} g6 {[%emt 0:
00:00]} 3. Nc3 {[%emt 0:00:32]} Bg7 {[%emt 0:00:00]} 4. g3 {[%emt 0:00:23]} O-O
{[%emt 0:00:09]} 5. Bg2 {[%emt 0:00:06]} d6 {[%emt 0:00:12]} 6. Nf3 {[%emt 0:
00:25]} c6 {[%emt 0:00:28]} 7. O-O {[%emt 0:03:21]} Nbd7 {[%emt 0:00:10]} 8. h3
{[%emt 0:02:19]} e5 {[%emt 0:00:14]} 9. e4 {[%emt 0:01:31]} Re8 {[%emt 0:00:34]
} 10. Re1 {[%emt 0:00:19]} a5 {[%emt 0:00:25]} 11. Rb1 {[%emt 0:00:40]} Qe7 {
[%emt 0:03:52]} 12. b3 {[%emt 0:07:35]} Bf8 {[%emt 0:14:19]} 13. Ba3 {[%emt 0:
22:32]} Qd8 {[%emt 0:00:45]} 14. Qc2 {[%emt 0:13:43]} Qc7 {[%emt 0:02:22]} 15.
Nd1 {[%emt 0:13:29]} b6 {[%emt 0:02:25]} 16. Nb2 {[%emt 0:06:33]} Ba6 {[%emt 0:
07:40]} 17. Nd3 {[%emt 0:05:25]} Bg7 {[%emt 0:04:21]} 18. Bb2 {[%emt 0:04:35]}
exd4 {[%emt 0:01:08]} 19. Nxd4 {[%emt 0:01:19]} c5 {[%emt 0:05:12]} 20. Nb5 {
[%emt 0:13:20]} Bxb5 {[%emt 0:00:24]} 21. cxb5 {[%emt 0:00:00]} Rac8 {[%emt 0:
02:11]} 22. Rbd1 {[%emt 0:01:32]} Ne5 {[%emt 0:03:13]} 23. Nf4 {[%emt 0:01:03]}
Rcd8 {[%emt 0:04:25]} 24. Nd5 {[%emt 0:00:35]} Nxd5 {[%emt 0:00:11]} 25. Rxd5 {
[%emt 0:00:04]} f6 {[%emt 0:02:16]} 26. Red1 {[%emt 0:00:56]} Nf7 {[%emt 0:00:
45]} 27. Qc4 {[%emt 0:00:28]} Kh8 {[%emt 0:02:24]} 28. Qd3 {[%emt 0:00:42]} Qe7
{[%emt 0:01:14]} 29. Kh2 {[%emt 0:00:24]} Kg8 {[%emt 0:03:19]} 30. Bc3 {[%emt
0:00:10]} Bf8 {[%emt 0:00:56]} 31. Qf3 {[%emt 0:00:17]} Bg7 {[%emt 0:01:38]}
32. Qd3 {[%emt 0:00:12]} Bf8 {[%emt 0:01:27]} 33. Qf3 {[%emt 0:00:02]} Bg7 {
[%emt 0:00:48]} 34. Qd3 {[%emt 0:01:01]} Ra8 {[%emt 0:01:15]} 35. a4 {[%emt 0:
00:26]} Rac8 {[%emt 0:00:54]} 36. Qc4 {[%emt 0:00:16]} Kf8 {[%emt 0:01:13]} 37.
Bb2 {[%emt 0:00:46]} Rcd8 {[%emt 0:00:39]} 38. Qd3 {[%emt 0:00:38]} Kg8 {[%emt
0:00:34]} 39. Qc4 {[%emt 0:00:04]} Kh8 {[%emt 0:00:04]} 40. Qd3 {[%emt 0:00:00]
} Qe6 {[%emt 0:00:00]} 41. h4 {[%emt 0:15:43]} h5 {[%emt 0:02:36]} 42. Qd2 {
[%emt 0:07:36]} Bf8 {[%emt 0:04:57]} 43. Bh3 {[%emt 0:09:18]} Qe7 {[%emt 0:00:
46]} 44. Bg2 {[%emt 0:01:04]} Ne5 {[%emt 0:02:57]} 45. Bxe5 {[%emt 0:00:23]}
fxe5 {[%emt 0:00:09]} 46. Qe3 {[%emt 0:00:37]} Kh7 {[%emt 0:00:21]} 47. Bh3 {
[%emt 0:00:22]} Qf6 {[%emt 0:00:21]} 48. Qe2 {[%emt 0:00:37]} Be7 {[%emt 0:01:
02]} 49. Qe3 {[%emt 0:00:21]} Rf8 {[%emt 0:00:28]} 50. R1d2 {[%emt 0:00:16]}
Rf7 {[%emt 0:01:28]} 51. Bg2 {[%emt 0:00:55]} Bf8 {[%emt 0:01:03]} 52. Qe2 {
[%emt 0:00:09]} Qe7 {[%emt 0:01:30]} 53. Kg1 {[%emt 0:00:12]} Rf6 {[%emt 0:00:
20]} 54. Qd1 {[%emt 0:01:00]} Qf7 {[%emt 0:03:09]} 1/2-1/2

[Event "ETCC Women 2013"]
[Site "Warsaw"]
[Date "2013.11.10"]
[Round "3"]
[White "Schnegg, Anna-Lena"]
[Black "Girya, Olga"]
[Result "0-1"]
[ECO "B44"]
[WhiteElo "2076"]
[BlackElo "2447"]
[PlyCount "72"]
[EventDate "2013.??.??"]
[EventCountry "POL"]
[WhiteTeam "Austria"]
[BlackTeam "Russia"]
[WhiteTeamCountry "AUT"]
[BlackTeamCountry "RUS"]
[TimeControl "40/5400+30:1800+30"]

1. e4 {[%emt 0:00:00]} c5 {[%emt 0:00:00]} 2. Nf3 {[%emt 0:00:00]} e6 {[%emt 0:
00:00]} 3. d4 {[%emt 0:00:00]} cxd4 {[%emt 0:00:00]} 4. Nxd4 {[%emt 0:00:06]}
Nc6 {[%emt 0:00:00]} 5. c4 {[%emt 0:00:56]} Nf6 {[%emt 0:15:14]} 6. Nc3 {[%emt
0:10:10]} d6 {[%emt 0:06:20]} 7. Be3 {[%emt 0:02:59]} Be7 {[%emt 0:00:37]} 8.
Be2 {[%emt 0:00:18]} O-O {[%emt 0:01:31]} 9. O-O {[%emt 0:04:01]} Bd7 {[%emt 0:
05:25]} 10. Qd2 {[%emt 0:04:37]} Nxd4 {[%emt 0:04:35]} 11. Bxd4 {[%emt 0:00:29]
} Bc6 {[%emt 0:00:23]} 12. Qc2 {[%emt 0:03:34]} a6 {[%emt 0:01:24]} 13. Rad1 {
[%emt 0:16:22]} Qc7 {[%emt 0:02:36]} 14. Qb1 {[%emt 0:04:49]} b6 {[%emt 0:11:
52]} 15. f3 {[%emt 0:10:33]} Rfd8 {[%emt 0:05:44]} 16. Kh1 {[%emt 0:03:49]} Nd7
{[%emt 0:02:10]} 17. Be3 {[%emt 0:19:35]} Bf6 {[%emt 0:01:48]} 18. Rc1 {[%emt
0:03:50]} Qb8 {[%emt 0:02:33]} 19. Rfd1 {[%emt 0:01:24]} Ne5 {[%emt 0:06:28]}
20. f4 {[%emt 0:10:15]} Ng6 {[%emt 0:01:31]} 21. g3 {[%emt 0:00:52]} Qb7 {
[%emt 0:03:32]} 22. Bf3 {[%emt 0:00:47]} b5 {[%emt 0:00:15]} 23. cxb5 {[%emt 0:
01:01]} axb5 {[%emt 0:00:06]} 24. Ne2 {[%emt 0:00:43]} Ra4 {[%emt 0:06:55]} 25.
Nd4 {[%emt 0:00:43]} Bxd4 {[%emt 0:00:14]} 26. Rxd4 {[%emt 0:00:18]} f5 {[%emt
0:03:16]} 27. Rxa4 {[%emt 0:00:40]} bxa4 {[%emt 0:00:05]} 28. Bg2 {[%emt 0:00:
34]} Bxe4 {[%emt 0:01:45]} 29. Bxe4 {[%emt 0:00:06]} fxe4 {[%emt 0:00:04]} 30.
Rc4 {[%emt 0:00:52]} a3 {[%emt 0:07:44]} 31. b3 {[%emt 0:00:30]} d5 {[%emt 0:
01:31]} 32. Ra4 {[%emt 0:00:26]} Ne7 {[%emt 0:01:02]} 33. Qd1 {[%emt 0:00:36]}
Nf5 {[%emt 0:00:59]} 34. Bd4 {[%emt 0:00:16]} Qb5 {[%emt 0:00:39]} 35. Kg1 {
[%emt 0:00:43]} Rc8 {[%emt 0:00:41]} 36. Rxa3 {[%emt 0:00:33]} Nxd4 {[%emt 0:
00:23]} 0-1

[Event "ETCC Women 2013"]
[Site "Warsaw"]
[Date "2013.11.10"]
[Round "3"]
[White "Seps, Monika"]
[Black "Ptacnikova, Lenka"]
[Result "1/2-1/2"]
[ECO "D02"]
[WhiteElo "2260"]
[BlackElo "2238"]
[PlyCount "81"]
[EventDate "2013.??.??"]
[EventCountry "POL"]
[WhiteTeam "Switzerland"]
[BlackTeam "Iceland"]
[WhiteTeamCountry "SUI"]
[BlackTeamCountry "ISL"]
[TimeControl "40/5400+30:1800+30"]

1. d4 {[%emt 0:00:00]} d5 {[%emt 0:00:00]} 2. Nf3 {[%emt 0:00:00]} c5 {[%emt 0:
01:05]} 3. c4 {[%emt 0:03:23]} cxd4 {[%emt 0:01:35]} 4. cxd5 {[%emt 0:04:43]}
Qxd5 {[%emt 0:12:17]} 5. Nc3 {[%emt 0:01:47]} Qa5 {[%emt 0:00:32]} 6. Nxd4 {
[%emt 0:02:10]} Nf6 {[%emt 0:02:14]} 7. e3 {[%emt 0:09:06]} a6 {[%emt 0:09:58]}
8. Be2 {[%emt 0:08:46]} e5 {[%emt 0:02:00]} 9. Nb3 {[%emt 0:00:00]} Qc7 {[%emt
0:00:14]} 10. O-O {[%emt 0:07:12]} Bb4 {[%emt 0:02:39]} 11. Bd2 {[%emt 0:01:36]
} Nc6 {[%emt 0:05:13]} 12. Bf3 {[%emt 0:08:06]} O-O {[%emt 0:09:09]} 13. Qc2 {
[%emt 0:01:37]} Ne7 {[%emt 0:16:43]} 14. Rac1 {[%emt 0:04:24]} Bf5 {[%emt 0:07:
26]} 15. e4 {[%emt 0:01:02]} Be6 {[%emt 0:06:23]} 16. Nd5 {[%emt 0:15:45]} Qxc2
{[%emt 0:00:24]} 17. Nxe7+ {[%emt 0:00:09]} Bxe7 {[%emt 0:00:16]} 18. Rxc2 {
[%emt 0:00:01]} Rac8 {[%emt 0:04:28]} 19. Rfc1 {[%emt 0:00:51]} Rxc2 {[%emt 0:
00:24]} 20. Rxc2 {[%emt 0:00:01]} Rc8 {[%emt 0:02:00]} 21. Rxc8+ {[%emt 0:00:
48]} Bxc8 {[%emt 0:00:04]} 22. Na5 {[%emt 0:01:41]} Ne8 {[%emt 0:01:51]} 23.
Be2 {[%emt 0:09:20]} Bc5 {[%emt 0:04:18]} 24. Bc3 {[%emt 0:00:55]} f6 {[%emt 0:
03:39]} 25. Bc4+ {[%emt 0:02:06]} Kf8 {[%emt 0:00:15]} 26. Bd5 {[%emt 0:00:12]}
Nd6 {[%emt 0:01:20]} 27. Kf1 {[%emt 0:00:19]} Ke7 {[%emt 0:00:27]} 28. Ke2 {
[%emt 0:00:27]} Kd7 {[%emt 0:00:47]} 29. a4 {[%emt 0:05:07]} Kc7 {[%emt 0:00:
18]} 30. Nc4 {[%emt 0:00:30]} Nxc4 {[%emt 0:00:41]} 31. Bxc4 {[%emt 0:00:00]}
Bd7 {[%emt 0:00:30]} 32. a5 {[%emt 0:02:29]} Bc6 {[%emt 0:00:30]} 33. f3 {
[%emt 0:00:16]} Kd6 {[%emt 0:01:03]} 34. Kd3 {[%emt 0:00:32]} h6 {[%emt 0:01:
26]} 35. b4 {[%emt 0:01:09]} Bg1 {[%emt 0:00:15]} 36. h3 {[%emt 0:00:02]} Bb5 {
[%emt 0:00:45]} 37. g4 {[%emt 0:06:30]} g5 {[%emt 0:00:46]} 38. Bxb5 {[%emt 0:
02:24]} axb5 {[%emt 0:00:04]} 39. Be1 {[%emt 0:00:09]} Ke6 {[%emt 0:00:57]} 40.
h4 {[%emt 0:00:00]} Ba7 {[%emt 0:00:00]} 41. h5 {[%emt 0:04:19]} 1/2-1/2

[Event "ETCC Women 2013"]
[Site "Warsaw"]
[Date "2013.11.10"]
[Round "3"]
[White "Shvayger, Yuliya"]
[Black "Khurtsidze, Nino"]
[Result "1-0"]
[ECO "B43"]
[WhiteElo "2294"]
[BlackElo "2462"]
[PlyCount "97"]
[EventDate "2013.??.??"]
[EventCountry "POL"]
[WhiteTeam "Israel"]
[BlackTeam "Georgia"]
[WhiteTeamCountry "ISR"]
[BlackTeamCountry "GEO"]
[TimeControl "40/5400+30:1800+30"]

1. e4 {[%emt 0:00:00]} c5 {[%emt 0:00:00]} 2. Nf3 {[%emt 0:00:00]} e6 {[%emt 0:
00:00]} 3. Nc3 {[%emt 0:00:12]} a6 {[%emt 0:00:00]} 4. d4 {[%emt 0:00:08]} cxd4
{[%emt 0:00:01]} 5. Nxd4 {[%emt 0:00:07]} b5 {[%emt 0:00:12]} 6. Bd3 {[%emt 0:
00:40]} Qb6 {[%emt 0:00:10]} 7. Nb3 {[%emt 0:01:22]} Qc7 {[%emt 0:00:42]} 8.
O-O {[%emt 0:05:24]} Bb7 {[%emt 0:01:33]} 9. Qe2 {[%emt 0:00:40]} b4 {[%emt 0:
09:28]} 10. Nb1 {[%emt 0:04:08]} Nc6 {[%emt 0:01:40]} 11. a4 {[%emt 0:02:25]}
Nf6 {[%emt 0:01:51]} 12. a5 {[%emt 0:00:59]} d5 {[%emt 0:03:17]} 13. N1d2 {
[%emt 0:13:34]} Bd6 {[%emt 0:02:29]} 14. h3 {[%emt 0:12:27]} O-O {[%emt 0:00:
31]} 15. exd5 {[%emt 0:01:04]} exd5 {[%emt 0:06:30]} 16. Nf3 {[%emt 0:03:45]}
Rfe8 {[%emt 0:00:58]} 17. Be3 {[%emt 0:01:39]} Ne5 {[%emt 0:02:36]} 18. Bd4 {
[%emt 0:16:34]} Nc4 {[%emt 0:18:07]} 19. Qd1 {[%emt 0:00:29]} Ne4 {[%emt 0:00:
11]} 20. Re1 {[%emt 0:20:34]} Re6 {[%emt 0:02:41]} 21. Re2 {[%emt 0:02:55]}
Rae8 {[%emt 0:04:35]} 22. c3 {[%emt 0:00:15]} bxc3 {[%emt 0:03:34]} 23. Bxc3 {
[%emt 0:02:38]} Bc8 {[%emt 0:10:09]} 24. Qc2 {[%emt 0:02:30]} Na3 {[%emt 0:09:
38]} 25. bxa3 {[%emt 0:01:43]} Qxc3 {[%emt 0:00:38]} 26. Nfd4 {[%emt 0:05:11]}
Qxc2 {[%emt 0:01:56]} 27. Rxc2 {[%emt 0:00:02]} Re5 {[%emt 0:06:38]} 28. Rc6 {
[%emt 0:00:23]} Bb8 {[%emt 0:01:22]} 29. Rac1 {[%emt 0:00:43]} Nd6 {[%emt 0:01:
23]} 30. Nf3 {[%emt 0:00:35]} R5e7 {[%emt 0:05:27]} 31. Bxa6 {[%emt 0:00:23]}
Bxa6 {[%emt 0:00:25]} 32. Rxa6 {[%emt 0:00:01]} Nc4 {[%emt 0:00:08]} 33. Rc6 {
[%emt 0:01:10]} Bf4 {[%emt 0:04:31]} 34. Rd1 {[%emt 0:00:29]} Re6 {[%emt 0:00:
10]} 35. Rc5 {[%emt 0:00:31]} Nb2 {[%emt 0:00:59]} 36. Rf1 {[%emt 0:00:42]} Rd8
{[%emt 0:01:22]} 37. g3 {[%emt 0:00:13]} Bb8 {[%emt 0:00:23]} 38. Nbd4 {[%emt
0:00:36]} Ra6 {[%emt 0:00:34]} 39. Rb1 {[%emt 0:00:27]} Ba7 {[%emt 0:00:12]}
40. Rc6 {[%emt 0:00:00]} Rxa5 {[%emt 0:00:00]} 41. Rxb2 {[%emt 0:03:09]} Rxa3 {
[%emt 0:01:48]} 42. Rb7 {[%emt 0:03:01]} h5 {[%emt 0:05:21]} 43. Rcc7 {[%emt 0:
01:39]} Bxd4 {[%emt 0:00:27]} 44. Nxd4 {[%emt 0:00:02]} Rd3 {[%emt 0:00:45]}
45. Nc6 {[%emt 0:01:43]} Rd6 {[%emt 0:06:59]} 46. Ne5 {[%emt 0:00:55]} Rd1+ {
[%emt 0:00:10]} 47. Kg2 {[%emt 0:00:01]} Rf6 {[%emt 0:00:08]} 48. Rc8+ {[%emt
0:01:57]} Kh7 {[%emt 0:00:05]} 49. Rbb8 {[%emt 0:00:04]} 1-0